[Event "2nd Kalyan Dombivali 2019"]
[Site "Kalyan"]
[Date "2019.02.01"]
[Round "7"]
[White "Agarwal Shyam"]
[Black "Chhabra Aakash"]
[Result "0-1"]
[ECO "C01"]
[WhiteElo "1409"]
[BlackElo "1619"]
[Annotator "NA"]
[PlyCount "152"]
[EventDate "2019.01.28"]
[EventType "swiss"]
[EventRounds "10"]
[EventCountry "IND"]
[SourceTitle "playchess.com"]
[Source "ChessBase"]
[SourceQuality "1"]
[TimeControl "5400+30"]

1. e4 {[%emt 0:00:00]} e6 {[%emt 0:00:00]} 2. d4 {[%emt 0:00:00]} d5 {[%emt 0:00:00]} 3. exd5 {[%emt 0:00:01]} exd5 {[%emt 0:00:00]} 4. Nf3 {[%emt 0:00:21]} Bd6 {[%emt 0:00:17]} 5. Bd3 {[%emt 0:00:34]} Ne7 {[%emt 0:00:10]} 6. O-O {[%emt 0:01:22]} O-O {[%emt 0:00:32]} 7. Re1 {[%emt 0:00:45]} Bf5 {[%emt 0:02:00]} 8. Be3 {[%emt 0:04:34]} Nbc6 {[%emt 0:10:29]} 9. c3 {[%emt 0:02:07]} Qd7 {[%emt 0:02:20]} 10. Qc2 {[%emt 0:03:22]} Rae8 {[%emt 0:02:26]} 11. Nbd2 {[%emt 0:01:24]} Bg6 {[%emt 0:03:42]} 12. Nh4 {[%emt 0:08:24]} Bxd3 {[%emt 0:09:29]} 13. Qxd3 {[%emt 0:00:13]} Nd8 {[%emt 0:01:48]} 14. Nf1 {[%emt 0:03:24]} h6 {[%emt 0:04:22]} 15. Ng3 f5 {[%emt 0:01:40]} 16. f4 {[%emt 0:11:38]} g6 {[%emt 0:11:11]} 17. Nf3 {[%emt 0:03:44]} Ne6 {[%emt 0:03:47]} 18. Ne5 {[%emt 0:03:51]} Bxe5 {[%emt 0:00:39]} 19. dxe5 {[%emt 0:00:35]} c5 {[%emt 0:04:00]} 20. b4 {[%emt 0:09:12]} b6 {[%emt 0:02:20]} 21. bxc5 {[%emt 0:02:27]} bxc5 {[%emt 0:00:08]} 22. Rab1 {[%emt 0:00:47]} Rb8 {[%emt 0:00:37]} 23. Ne2 {[%emt 0:02:45]} Kf7 {[%emt 0:02:34]} 24. Qd2 {[%emt 0:06:28]} Qc7 {[%emt 0:00:56]} 25. Rb3 {[%emt 0:05:07]} Rb6 {[%emt 0:00:37]} 26. Reb1 {[%emt 0:01:32]} Rfb8 {[%emt 0:00:51]} 27. Nc1 {[%emt 0:01:51]} Rxb3 {[%emt 0:01:27]} 28. Rxb3 {[%emt 0:02:58]} Rb6 {[%emt 0:02:43]} 29. g3 {[%emt 0:04:18]} Qc6 {[%emt 0:04:59]} 30. Ne2 {[%emt 0:01:52]} Qb7 {[%emt 0:02:49]} 31. Qb2 {[%emt 0:01:53]} Qa6 {[%emt 0:00:45]} 32. h3 {[%emt 0:02:36]} h5 {[%emt 0:05:13]} 33. Nc1 {[%emt 0:02:57]} Nc8 {[%emt 0:05:33]} 34. Qd2 {[%emt 0:01:27]} Qc4 {[%emt 0:01:24]} 35. Qe2 {[%emt 0:01:45]} Qxe2 {[%emt 0:00:13]} 36. Nxe2 {[%emt 0:00:19]} Ke7 {[%emt 0:00:28]} 37. Kf2 {[%emt 0:00:34]} Kd7 {[%emt 0:00:22]} 38. Ke1 {[%emt 0:00:49]} Kc6 {[%emt 0:00:22]} 39. Kd2 {[%emt 0:00:44]} Ra6 {[%emt 0:00:57]} 40. Nc1 {[%emt 0:01:50]} Nb6 {[%emt 0:00:25]} 41. Bf2 {[%emt 0:01:17]} Nc4+ {[%emt 0:00:12]} 42. Ke2 {[%emt 0:01:20]} Rb6 {[%emt 0:01:18]} 43. Kd1 {[%emt 0:01:13]} a5 {[%emt 0:01:03]} 44. h4 {[%emt 0:01:04]} a4 {[%emt 0:00:17]} 45. Rxb6+ {[%emt 0:00:04]} Kxb6 {[%emt 0:00:16]} 46. Kc2 {[%emt 0:00:38]} Kb5 {[%emt 0:01:14]} 47. Kd3 {[%emt 0:00:52]} Kc6 {[%emt 0:01:03]} 48. Kc2 {[%emt 0:00:27]} Na5 {[%emt 0:00:31]} 49. Kd3 {[%emt 0:00:43]} Nb7 {[%emt 0:00:13]} 50. Kc2 {[%emt 0:00:46]} d4 {[%emt 0:01:09]} 51. c4 {[%emt 0:01:23]} Na5 {[%emt 0:00:22]} 52. Kd3 {[%emt 0:00:27]} a3 {[%emt 0:01:44]} 53. Be1 {[%emt 0:00:28]} Nb7 {[%emt 0:00:13]} 54. Nb3 {[%emt 0:00:33]} Kb6 {[%emt 0:01:03]} 55. Bd2 {[%emt 0:00:23]} Ka6 {[%emt 0:01:41]} 56. Bc1 {[%emt 0:00:17]} Na5 {[%emt 0:00:47]} 57. Nd2 {[%emt 0:00:26]} Kb6 {[%emt 0:01:57]} 58. Bxa3 {[%emt 0:00:13]} Nf8 {[%emt 0:01:24]} 59. Nf3 {[%emt 0:01:31]} Ne6 {[%emt 0:00:07]} 60. Ng5 {[%emt 0:00:34]} Nxg5 {[%emt 0:00:40]} 61. hxg5 {[%emt 0:00:06]} Nc6 {[%emt 0:00:38]} 62. Bb2 {[%emt 0:00:31]} Nd8 {[%emt 0:00:25]} 63. Bc1 {[%emt 0:00:15]} Ne6 {[%emt 0:00:09]} 64. Bd2 {[%emt 0:00:13]} Ka6 {[%emt 0:00:24]} 65. a4 {[%emt 0:00:22]} Nf8 {[%emt 0:00:36]} 66. Kc2 {[%emt 0:00:26]} Ne6 {[%emt 0:00:09]} 67. Kb3 {[%emt 0:00:41]} Kb6 {[%emt 0:00:24]} 68. a5+ {[%emt 0:00:39]} Ka6 {[%emt 0:00:18]} 69. Ka4 {[%emt 0:01:08]} Nd8 {[%emt 0:01:07]} 70. Bc1 {[%emt 0:01:44]} Ne6 {[%emt 0:00:07]} 71. Ba3 {[%emt 0:00:59]} d3 {[%emt 0:01:54]} 72. Bc1 {[%emt 0:00:16]} Nd4 {[%emt 0:01:28]} 73. Bd2 {[%emt 0:00:10]} Kb7 {[%emt 0:00:31]} 74. Bc3 {[%emt 0:00:54]} Ka6 {[%emt 0:00:24]} 75. Bxd4 {[%emt 0:00:30]} d2 {[%emt 0:00:08]} 76. Bxc5 {[%emt 0:00:30]} d1=Q+ {[%emt 0:00:11]} 0-1

[Event "2nd Kalyan Dombivali 2019"]
[Site "Kalyan"]
[Date "2019.02.01"]
[Round "7"]
[White "Shrey Nilkant"]
[Black "Satkar, Chirag"]
[Result "1/2-1/2"]
[ECO "C55"]
[WhiteElo "1371"]
[BlackElo "2071"]
[Annotator "NA RC"]
[PlyCount "57"]
[EventDate "2019.01.28"]
[EventType "swiss"]
[EventRounds "10"]
[EventCountry "IND"]
[SourceTitle "playchess.com"]
[Source "ChessBase"]
[SourceQuality "1"]
[TimeControl "5400+30"]

{[%evp 17,53,20,39,16,32767,0,9,-2,197,32767,195,177,220,86,81,79,91,77,99,76,78,32767,102,91,80,50,62,76,68,0,29,-43,32767,32767,95,81,82,96]} 1. e4 {[%emt 0:00:00]} e5 {[%emt 0:00:00]} 2. Nf3 {[%emt 0:00:00]} Nc6 {[%emt 0:00:00]} 3. Bc4 {[%emt 0:00:00]} Nf6 {[%emt 0:00:00]} 4. d3 {[%emt 0:00:07]} h6 {[%emt 0:00:00]} 5. c3 {[%emt 0:00:09]} d6 {[%emt 0:00:12]} 6. O-O {[%emt 0:00:19]} g6 {[%emt 0:00:17]} 7. Bb3 {[%emt 0:00:26]} Bg7 {[%emt 0:00:11]} 8. Nbd2 {[%emt 0:00:31]} O-O {[%emt 0:00:20]} 9. Re1 {[%emt 0:00:43]} a6 {[%emt 0:06:55]} 10. h3 {[%emt 0:02:03] LiveBook: 4 Games} d5 {[%emt 0:03:19]} 11. exd5 {[%emt 0:02:17]} Nxd5 {[%emt 0:00:06]} 12. Ne4 {[%emt 0:02:30]} Re8 $2 {[%emt 0:01:52] [#]} (12... f5 $11 {and Black stays safe.}) 13. Bxh6 $1 {[%emt 0:05:39]} Bxh6 {[%emt 0:05:12]} 14. Bxd5 $1 {[%emt 0:00:09]} Kg7 {[%emt 0:05:31]} 15. Bb3 {[%emt 0:06:25]} (15. Bxc6 $18 {has better winning chances.} bxc6 16. Qa4) 15... f5 {[%emt 0:02:11] [#]} 16. Ng3 $1 {[%emt 0:01:43]} Bd7 {[%emt 0:00:39]} 17. a3 {[%emt 0:15:25]} Qf6 {[%emt 0:01:40]} 18. Qc2 {[%emt 0:06:22]} Rad8 {[%emt 0:03:27]} 19. Rad1 {[%emt 0:05:39]} Kh7 {[%emt 0:03:00]} 20. Ba2 {[%emt 0:10:05]} Bc8 {[%emt 0:02:15]} 21. Qa4 {[%emt 0:08:32]} b5 {[%emt 0:06:02]} 22. Qc2 {[%emt 0:03:52]} Bb7 {[%emt 0:02:19]} 23. Qb3 {[%emt 0:06:57]} Kg7 {[%emt 0:02:59]} 24. d4 {[%emt 0:11:31]} (24. a4 $11) 24... e4 {[%emt 0:10:59]} 25. Ne5 {[%emt 0:01:31]} Bf4 {[%emt 0:00:53] [#]} (25... Nxe5 $15 26. dxe5 Qe7) 26. Qf7+ $1 {[%emt 0:02:13]} Qxf7 {[%emt 0:00:26]} 27. Nxf7 $16 {[%emt 0:01:23]} (27. Bxf7 $2 Nxe5 28. Bxe8 Nd3 $17 {[%mdl 64] Double Attack}) 27... Rd7 28. Ne2 Bd6 29. Nxd6 1/2-1/2

[Event "2nd Kalyan Dombivali 2019"]
[Site "Kalyan"]
[Date "2019.02.01"]
[Round "7"]
[White "Jadhav Jyotiraditya"]
[Black "Govind Prabhu Mah"]
[Result "0-1"]
[ECO "A52"]
[WhiteElo "1358"]
[BlackElo "1601"]
[Annotator "NA"]
[PlyCount "104"]
[EventDate "2019.01.28"]
[EventType "swiss"]
[EventRounds "10"]
[EventCountry "IND"]
[SourceTitle "playchess.com"]
[Source "ChessBase"]
[SourceQuality "1"]
[TimeControl "5400+30"]

1. d4 {[%emt 0:00:00]} Nf6 {[%emt 0:08:07]} 2. c4 {[%emt 0:00:00]} e5 {[%emt 0:00:16]} 3. dxe5 {[%emt 0:00:01]} Ng4 {[%emt 0:00:02]} 4. Nf3 {[%emt 0:00:08]} Bc5 {[%emt 0:00:07]} 5. e3 {[%emt 0:00:30]} Nc6 {[%emt 0:00:06]} 6. Be2 {[%emt 0:01:08]} O-O {[%emt 0:00:11]} 7. O-O {[%emt 0:01:07]} Re8 {[%emt 0:00:04]} 8. b3 {[%emt 0:02:33]} Ngxe5 {[%emt 0:00:19]} 9. Bb2 {[%emt 0:01:36]} a5 {[%emt 0:00:17]} 10. a3 {[%emt 0:03:23]} Nxf3+ {[%emt 0:00:21]} 11. Bxf3 {[%emt 0:00:05]} Ne5 {[%emt 0:00:08]} 12. Nd2 {[%emt 0:02:48]} Ra6 {[%emt 0:01:37]} 13. Qc2 {[%emt 0:12:33]} Rh6 {[%emt 0:02:05]} 14. Bxe5 {[%emt 0:15:30]} Rxe5 {[%emt 0:00:39]} 15. Rfd1 {[%emt 0:02:33]} Qh4 {[%emt 0:03:27]} 16. Nf1 {[%emt 0:01:12]} d6 {[%emt 0:00:13]} 17. Rd5 {[%emt 0:02:58]} Re8 {[%emt 0:04:51]} 18. Qc3 {[%emt 0:05:22]} Bb6 {[%emt 0:03:12]} 19. Rad1 {[%emt 0:08:59]} f5 {[%emt 0:22:47]} 20. R5d2 {[%emt 0:07:28]} f4 {[%emt 0:02:22]} 21. exf4 {[%emt 0:06:12]} Qxf4 {[%emt 0:01:17]} 22. b4 {[%emt 0:02:40]} axb4 {[%emt 0:04:39]} 23. axb4 {[%emt 0:00:12]} c6 {[%emt 0:00:08]} 24. c5 {[%emt 0:10:05]} dxc5 {[%emt 0:04:22]} 25. bxc5 {[%emt 0:00:07]} Bc7 {[%emt 0:00:33]} 26. Rd4 {[%emt 0:01:16]} Qf6 {[%emt 0:07:44]} 27. Qd2 {[%emt 0:03:51]} Rf8 {[%emt 0:03:18]} 28. Bg4 {[%emt 0:03:08]} Bxg4 {[%emt 0:17:14]} 29. Rxg4 {[%emt 0:00:08]} Rh5 {[%emt 0:00:26]} 30. Rc4 {[%emt 0:01:54]} Rd5 {[%emt 0:00:45]} 31. Qa2 {[%emt 0:01:11]} Kh8 {[%emt 0:08:46]} 32. Rxd5 {[%emt 0:00:33]} cxd5 {[%emt 0:00:01]} 33. Rc2 {[%emt 0:00:17]} d4 {[%emt 0:00:12]} 34. Rd2 {[%emt 0:00:40]} Rd8 {[%emt 0:01:17]} 35. Qb2 {[%emt 0:01:13]} Ba5 {[%emt 0:02:52]} 36. Rd3 {[%emt 0:00:33]} b6 {[%emt 0:01:17]} 37. cxb6 {[%emt 0:00:29]} Bxb6 {[%emt 0:00:10]} 38. Nd2 {[%emt 0:00:43]} h6 {[%emt 0:00:51]} 39. h3 {[%emt 0:01:09]} Rc8 {[%emt 0:01:03]} 40. Nb3 {[%emt 0:00:53]} Rc3 {[%emt 0:00:24]} 41. Rxc3 {[%emt 0:01:02]} dxc3 {[%emt 0:00:01]} 42. Qc2 {[%emt 0:00:08]} Qe5 {[%emt 0:00:21]} 43. Kf1 {[%emt 0:01:32]} Qb5+ {[%emt 0:00:17]} 44. Kg1 {[%emt 0:00:17]} Qc4 {[%emt 0:00:35]} 45. Nc1 {[%emt 0:00:44]} Qd4 {[%emt 0:01:21]} 46. Nd3 {[%emt 0:00:23]} Bd8 {[%emt 0:00:22]} 47. Nc1 {[%emt 0:00:54]} Qd2 {[%emt 0:00:30]} 48. Qb1 {[%emt 0:00:56]} Qe1+ {[%emt 0:00:41]} 49. Kh2 {[%emt 0:00:19]} Bc7+ {[%emt 0:00:01]} 50. g3 {[%emt 0:00:19]} Qxf2+ {[%emt 0:00:02]} 51. Kh1 {[%emt 0:00:04]} Bxg3 {[%emt 0:00:36]} 52. Qa2 {[%emt 0:00:09]} Qf1# {[%emt 0:00:00]} 0-1

[Event "2nd Kalyan Dombivali 2019"]
[Site "Kalyan"]
[Date "2019.02.01"]
[Round "7"]
[White "Gurav Sanmil"]
[Black "Kelaskar, Chinmay"]
[Result "1/2-1/2"]
[ECO "B23"]
[WhiteElo "1311"]
[BlackElo "1764"]
[Annotator "NA RC"]
[PlyCount "49"]
[EventDate "2019.01.28"]
[EventType "swiss"]
[EventRounds "10"]
[EventCountry "IND"]
[SourceTitle "playchess.com"]
[Source "ChessBase"]
[SourceQuality "1"]
[TimeControl "5400+30"]

1. e4 {[%emt 0:00:00]} c5 {[%emt 0:00:00]} 2. Nc3 {[%emt 0:00:00]} Nc6 {[%emt 0:00:00]} 3. f4 {[%emt 0:00:00]} g6 {[%emt 0:00:01]} 4. Nf3 {[%emt 0:00:00]} Bg7 {[%emt 0:00:08]} 5. d3 {[%emt 0:00:14]} e6 {[%emt 0:00:10]} 6. g3 {[%emt 0:00:23]} Nge7 {[%emt 0:00:12]} 7. Bg2 {[%emt 0:00:10]} a6 {[%emt 0:00:50]} 8. a4 {[%emt 0:00:14]} Rb8 {[%emt 0:00:19]} 9. O-O {[%emt 0:00:29]} Nd4 {[%emt 0:01:01]} 10. Ne2 {[%emt 0:03:20]} Nec6 {[%emt 0:01:16]} 11. c3 {[%emt 0:04:04]} Nxf3+ {[%emt 0:03:27]} 12. Bxf3 {[%emt 0:00:28]} d6 {[%emt 0:01:56]} 13. Be3 {[%emt 0:03:42]} O-O {[%emt 0:07:14]} 14. Bg2 {[%emt 0:09:46]} Qc7 {[%emt 0:02:26]} 15. Rc1 {[%emt 0:17:42]} b5 {[%emt 0:04:34]} 16. b4 {[%emt 0:11:02]} Ne7 {[%emt 0:12:36]} 17. d4 {[%emt 0:06:13]} Rd8 {[%emt 0:01:10]} 18. a5 {[%emt 0:02:27]} c4 {[%emt 0:13:23]} 19. Qe1 {[%emt 0:11:37]} f5 {[%emt 0:04:52]} 20. e5 {[%emt 0:01:44]} Bb7 {[%emt 0:02:12]} 21. Qf2 {[%emt 0:06:43]} Rd7 {[%emt 0:04:27]} 22. h4 {[%emt 0:04:34]} Bd5 {[%emt 0:00:50]} 23. Kh2 {[%emt 0:02:37]} Kf7 {[%emt 0:00:17]} 24. Ng1 {[%emt 0:02:49]} h5 {[%emt 0:04:33]} 25. Nf3 {[%emt 0:00:56]} 1/2-1/2

[Event "2nd Kalyan Dombivali 2019"]
[Site "Kalyan"]
[Date "2019.02.02"]
[Round "8"]
[White "Satkar, Chirag"]
[Black "Kamble Dipankar"]
[Result "*"]
[ECO "A52"]
[WhiteElo "2071"]
[BlackElo "1487"]
[Annotator "NA RC"]
[PlyCount "67"]
[EventDate "2019.01.28"]
[EventType "swiss"]
[EventRounds "10"]
[EventCountry "IND"]
[SourceTitle "playchess.com"]
[Source "ChessBase"]
[SourceQuality "1"]
[TimeControl "5400+30"]

{[%evp 9,67,27,37,49,32,30,31,32767,38,40,29,10,31,10,55,48,32767,42,60,-10,0,-5,2,-13,23,27,42,25,25,22,33,43,41,34,64,41,52,49,56,42,37,49,57,53,32767,35,99,102,127,125,133,122,139,139,233,247,277,270,248,258]} 1. d4 {[%emt 0:09:32]} Nf6 {[%emt 0:00:48]} 2. c4 {[%emt 0:00:06]} e5 {[%emt 0:00:11]} 3. dxe5 {[%emt 0:00:11]} Ng4 {[%emt 0:00:18]} 4. Nf3 {[%emt 0:00:13]} Bc5 {[%emt 0:00:59]} 5. e3 {[%emt 0:00:36]} Nc6 {[%emt 0:00:07]} 6. Nc3 {[%emt 0:00:35]} (6. Be2 O-O 7. O-O Ngxe5 8. Nc3 Nxf3+ 9. Bxf3 Ne5 10. Be2 {1-0 (55) Giri,A (2782)-Mamedyarov,S (2801) chess.com INT 2018}) 6... O-O {[%emt 0:01:41]} 7. Be2 {[%emt 0:01:01]} Re8 $146 {[%emt 0:05:12]} ({Predecessor:} 7... Ngxe5 8. Nxe5 Nxe5 {0-1 (29) Colom Andres,X (1941)-Barbero Sendic,A (2343) Barcelona 2012}) 8. O-O {[%emt 0:01:17]} Ngxe5 {[%emt 0:00:05] LiveBook: 80 Games} 9. Nxe5 {[%emt 0:00:33]} Nxe5 {[%emt 0:01:35]} 10. b3 {[%emt 0:02:04]} a5 {[%emt 0:01:08]} 11. Na4 {[%emt 0:01:36]} Bf8 {[%emt 0:03:44] A52: Budapest Gambit} 12. f4 {[%emt 0:05:04]} (12. Bb2 d6 13. Nc3 c6 14. Qd2 Qh4 15. f4 Ng4 16. Bxg4 Bxg4 17. e4 a4 18. Rae1 axb3 19. axb3 {1-0 (55) Giri,A (2782)-Mamedyarov,S (2801) chess.com INT 2018}) 12... Nc6 {[%emt 0:03:51]} 13. a3 {[%emt 0:02:07]} d6 {[%emt 0:14:06]} 14. Qc2 {[%emt 0:19:24]} ({White should try} 14. Bf3 $14) ({Predecessor:} 14. Qd3 Qf6 15. Nc3 Bf5 16. Nd5 Qxa1 17. Qxf5 Ne7 18. Qc2 Nxd5 19. cxd5 {0-1 (29) Colom Andres,X (1941)-Barbero Sendic,A (2343) Barcelona 2012}) 14... g6 {[%emt 0:03:05]} 15. Bd3 {[%emt 0:01:35]} Bg7 {[%emt 0:00:35]} 16. Nc3 {[%emt 0:00:49]} f5 {[%emt 0:24:39]} 17. Bd2 {[%emt 0:01:56]} Be6 {[%emt 0:05:15]} 18. Rad1 {[%emt 0:01:32]} Qd7 {[%emt 0:05:42]} 19. Bc1 {[%emt 0:04:45]} Ne7 {[%emt 0:02:04]} 20. Be2 {[%emt 0:04:29]} Kh8 {[%emt 0:05:17]} 21. Bf3 {[%emt 0:01:57]} c6 {[%emt 0:01:59]} 22. Na4 {[%emt 0:07:20]} Qc7 {[%emt 0:01:51]} 23. Bb2 {[%emt 0:02:34]} Ng8 {[%emt 0:01:22]} 24. Bd4 {[%emt 0:04:13]} Nf6 {[%emt 0:02:40]} 25. Rd3 {[%emt 0:10:06]} Qf7 {[%emt 0:06:35]} 26. Rfd1 {[%emt 0:03:11]} d5 {[%emt 0:01:13]} 27. Bxf6 {[%emt 0:02:56]} Bxf6 {[%emt 0:00:08]} (27... Qxf6 $14 28. cxd5 Bxd5) 28. cxd5 {[%emt 0:00:07]} Bxd5 {[%emt 0:02:42]} 29. Bxd5 {[%emt 0:00:22]} cxd5 {[%emt 0:00:05]} 30. Nb6 {[%emt 0:00:07] Double Attack} Ra6 {[%emt 0:04:44]} 31. Nxd5 {[%emt 0:00:48]} Rae6 {[%emt 0:01:09]} (31... Rc6 $16 32. Qd2 b6) 32. Qc7 {[%emt 0:01:29]} Qf8 {[%emt 0:00:39]} 33. Qxa5 {[%emt 0:02:20]} Bd8 {[%emt 0:00:27]} 34. Qc3+ $18 {[%emt 0:02:00]} *

[Event "2nd Kalyan Dombivali 2019"]
[Site "Kalyan"]
[Date "2019.02.02"]
[Round "8"]
[White "Kadam Om Manish"]
[Black "Subramanian, R M"]
[Result "1/2-1/2"]
[ECO "C44"]
[WhiteElo "1944"]
[BlackElo "1780"]
[Annotator "NA RC"]
[PlyCount "80"]
[EventDate "2019.01.28"]
[EventType "swiss"]
[EventRounds "10"]
[EventCountry "IND"]
[SourceTitle "playchess.com"]
[Source "ChessBase"]
[SourceQuality "1"]
[TimeControl "5400+30"]

{[%evp 8,79,8,4,43,33,54,-45,-8,-17,20,14,40,31,33,28,62,56,61,50,62,46,58,48,71,59,52,38,63,56,67,39,24,20,2,8,17,0,27,25,27,26,30,20,28,22,25,14,28,0,0,32767,32767,32767,0,0,0,0,0,0,0,0,0,-35,0,0,0,0,0,0,0,0,0,0]} 1. e4 {[%emt 0:00:00]} e5 {[%emt 0:13:10]} 2. Nf3 {[%emt 0:00:27]} Nc6 {[%emt 0:00:04]} 3. g3 {[%emt 0:00:59]} Bc5 {[%emt 0:00:55]} 4. Bg2 {[%emt 0:00:40]} d6 {[%emt 0:00:07]} 5. c3 {[%emt 0:00:51]} f5 {[%emt 0:01:40]} 6. exf5 {[%emt 0:13:59]} Bxf5 {[%emt 0:04:25]} 7. Qe2 {[%emt 0:02:31]} (7. d4 $14 Bb6 8. O-O) 7... Nge7 {[%emt 0:04:17]} 8. Nh4 {[%emt 0:32:39]} O-O {[%emt 0:03:35]} 9. Nxf5 {[%emt 0:00:01]} Nxf5 {[%emt 0:04:36]} 10. O-O {[%emt 0:00:35]} a5 {[%emt 0:04:29]} 11. d3 {[%emt 0:01:55]} Qf6 {[%emt 0:02:39]} 12. Nd2 {[%emt 0:01:12]} Qg6 {[%emt 0:05:19]} 13. Nc4 {[%emt 0:07:35]} Rae8 {[%emt 0:11:36]} 14. Ne3 {[%emt 0:01:34]} (14. Be3 $5) 14... Nd8 {[%emt 0:03:00]} 15. Be4 {[%emt 0:00:53]} Bxe3 $1 {[%emt 0:03:48]} 16. fxe3 {[%emt 0:01:20]} Qe6 {[%emt 0:07:08]} 17. c4 {[%emt 0:06:46]} c6 {[%emt 0:00:50]} 18. Bd2 {[%emt 0:00:08]} b6 {[%emt 0:02:42]} 19. Qg2 {[%emt 0:00:07]} Ne7 {[%emt 0:00:26]} 20. b3 {[%emt 0:04:06]} d5 {[%emt 0:00:37]} 21. cxd5 {[%emt 0:00:23]} cxd5 {[%emt 0:00:03]} 22. Bf3 {[%emt 0:00:31]} Nf7 {[%emt 0:01:50]} 23. Bh5 {[%emt 0:05:34]} Rc8 {[%emt 0:03:45]} 24. Qe2 {[%emt 0:02:26]} Rc2 {[%emt 0:01:48]} 25. Qd1 {[%emt 0:01:36]} Qc6 {[%emt 0:03:06]} 26. Rc1 {[%emt 0:07:37]} Rxc1 {[%emt 0:00:10]} 27. Qxc1 {[%emt 0:00:05]} Qd6 {[%emt 0:02:59]} 28. Rxf7 {[%emt 0:01:36]} Rxf7 {[%emt 0:00:38]} 29. Bxf7+ {[%emt 0:00:01]} Kxf7 {[%emt 0:00:01]} 30. a3 {[%emt 0:00:09]} Nc6 {[%emt 0:04:36]} 31. b4 {[%emt 0:01:26]} axb4 {[%emt 0:00:35]} 32. axb4 {[%emt 0:00:09]} b5 {[%emt 0:00:17]} ({Don't go for} 32... Nxb4 $2 33. Qa3 $18) 33. Qa1 {[%emt 0:01:43]} Qg6 {[%emt 0:01:43]} 34. Qc3 {[%emt 0:01:51]} Qg4 {[%emt 0:01:05]} 35. Qc1 {[%emt 0:01:28]} Qe2 {[%emt 0:02:21]} 36. Qxc6 {[%emt 0:01:09]} Qd1+ {[%emt 0:00:21]} 37. Kf2 {[%emt 0:00:08]} Qxd2+ {[%emt 0:00:06] Double Attack} 38. Kf3 {[%emt 0:00:20]} Qd1+ {[%emt 0:02:21]} 39. Kf2 {[%emt 0:00:04]} Qd2+ {[%emt 0:02:00]} 40. Kf3 $11 {[%emt 0:00:02]} Qd1+ {[%emt 0:01:40] Ke4} 1/2-1/2

[Event "2nd Kalyan Dombivali 2019"]
[Site "Kalyan"]
[Date "2019.02.02"]
[Round "8"]
[White "Chhabra Aakash"]
[Black "Ahmed, Feroz"]
[Result "0-1"]
[ECO "A43"]
[WhiteElo "1619"]
[BlackElo "1919"]
[Annotator "NA RC"]
[PlyCount "94"]
[EventDate "2019.01.28"]
[EventType "swiss"]
[EventRounds "10"]
[EventCountry "IND"]
[SourceTitle "playchess.com"]
[Source "ChessBase"]
[SourceQuality "1"]
[TimeControl "5400+30"]

{[%evp 9,94,9,33,0,35,31,50,43,79,54,63,37,49,32,32767,39,65,47,62,20,63,0,0,-15,-16,32767,-56,-70,-73,-83,-76,-131,-118,-265,-264,-271,-265,-266,-288,-277,-294,-292,-299,-323,-257,32767,-224,-336,-233,-239,-235,-261,-261,-355,-328,-356,-313,-374,-402,-408,-317,-301,-316,-375,-226,-178,-173,-247,-172,-166,-167,-152,-189,-222,-214,-192,-230,-208,-180,-226,-231,-269,-223,-292,-252,-618,-686]} 1. d4 {[%emt 0:00:00]} c5 {[%emt 0:00:00]} 2. e3 {[%emt 0:00:00]} Nf6 {[%emt 0:01:08]} 3. Nf3 {[%emt 0:00:00]} g6 {[%emt 0:00:51]} 4. c4 {[%emt 0:00:36]} Bg7 {[%emt 0:00:38]} 5. Nc3 {[%emt 0:00:21]} O-O {[%emt 0:00:19]} 6. Be2 {[%emt 0:00:14]} d6 {[%emt 0:10:49]} 7. O-O {[%emt 0:00:09]} Na6 {[%emt 0:04:06]} 8. b3 {[%emt 0:02:12]} Qa5 {[%emt 0:03:22]} (8... e5 $11 {remains equal.}) 9. Bb2 {[%emt 0:02:02]} Bd7 {[%emt 0:03:01]} 10. Rc1 {[%emt 0:02:24]} Nc7 {[%emt 0:01:54]} 11. Bd3 {[%emt 0:04:46]} a6 {[%emt 0:01:03]} 12. dxc5 {[%emt 0:01:59]} dxc5 {[%emt 0:06:07]} 13. Qe2 {[%emt 0:03:41]} b5 {[%emt 0:02:11]} 14. Ne4 {[%emt 0:05:57]} b4 {[%emt 0:02:23]} 15. Nxf6+ {[%emt 0:00:46]} exf6 {[%emt 0:00:40]} 16. Bb1 {[%emt 0:01:17]} Bc6 {[%emt 0:02:15]} 17. Rfd1 {[%emt 0:01:39]} Ne6 {[%emt 0:01:53]} 18. Rd6 {[%emt 0:03:00]} Qc7 {[%emt 0:00:17]} 19. Rcd1 {[%emt 0:02:52]} Rfe8 {[%emt 0:00:57]} 20. R1d2 {[%emt 0:04:51]} (20. R6d2 $142) 20... Bf8 {[%emt 0:06:15]} 21. R6d3 {[%emt 0:03:53] [#]} (21. R6d5 $17) 21... Nf4 $1 {[%emt 0:01:07] Double Attack, Pin, Trapped Piece} 22. exf4 {[%emt 0:00:52]} Rxe2 23. Rxe2 {[%emt 0:00:06]} Qxf4 {[%emt 0:00:53]} 24. Ne1 {[%emt 0:01:45]} Bg7 {[%emt 0:03:09]} 25. g3 {[%emt 0:01:31]} Qc7 {[%emt 0:01:51]} 26. Ng2 {[%emt 0:01:51]} Bxg2 {[%emt 0:01:11]} 27. Kxg2 {[%emt 0:00:23]} h5 {[%emt 0:06:04]} 28. Rde3 {[%emt 0:03:25]} (28. Bc1 $142) 28... Ra7 {[%emt 0:02:32]} 29. Re8+ {[%emt 0:01:40]} Kh7 {[%emt 0:00:13]} 30. Bc1 {[%emt 0:01:50] [#]} f5 $1 {[%emt 0:00:35]} 31. Bf4 {[%emt 0:02:43]} Qc6+ {[%emt 0:00:14]} 32. f3 {[%emt 0:00:46]} Bf6 {[%emt 0:03:44]} 33. h3 {[%emt 0:02:19]} Kg7 {[%emt 0:00:23]} 34. h4 {[%emt 0:02:33]} a5 {[%emt 0:01:28]} 35. Bc2 {[%emt 0:01:39]} Qd7 {[%emt 0:02:34]} 36. Be3 {[%emt 0:02:41]} Kh7 {[%emt 0:02:22]} ({Less strong is} 36... Qxe8 {[#]} 37. Bh6+ $1 {[%mdl 576] Discovered Attack} Kxh6 38. Rxe8 $17) 37. Bxc5 {[%emt 0:01:03]} Ra6 {[%emt 0:00:21]} 38. Bf2 {[%emt 0:01:40]} Re6 {[%emt 0:00:50]} 39. R8xe6 {[%emt 0:00:08]} fxe6 {[%emt 0:00:07]} 40. Be3 {[%emt 0:00:18]} Bc3 {[%emt 0:00:29]} 41. Bf2 {[%emt 0:01:51]} Qc6 {[%emt 0:02:39]} 42. Bd3 {[%emt 0:02:18]} Qd6 {[%emt 0:00:51]} 43. Bc2 {[%emt 0:01:08]} Kg7 {[%emt 0:00:37]} 44. Kf1 {[%emt 0:01:39]} Kf6 {[%emt 0:02:44]} 45. Kg2 {[%emt 0:01:50]} e5 {[%emt 0:00:47]} 46. Kf1 {[%emt 0:01:18] [#]} (46. Be3 $142) 46... a4 $1 {[%emt 0:01:05]} 47. bxa4 $19 {[%emt 0:00:29]} (47. Kg2 axb3 48. axb3) 47... Qc6 {[%emt 0:00:20] Double Attack} 0-1